bitfinex/quotes_SOLUSD_20250625
["timestamp","ask_amount","ask_price","bid_price","bid_amount"]
[1750879516229,5.17606913,144.44,144.4,25.57474075]
[1750879516432,5.17606913,144.43,144.4,25.57474075]
[1750879516747,4.15370357,144.45,144.4,25.57474075]
[1750879516933,5.17615919,144.44,144.4,25.57474075]
[1750879517252,5.17615919,144.43,144.4,25.57474075]
[1750879517456,4.15370357,144.45,144.4,25.57474075]
[1750879517757,31.1761984,144.44,144.4,25.57474075]
[1750879518043,5.1761984,144.43,144.4,25.57474075]
[1750879518248,26.0,144.44,144.4,25.57474075]
[1750879518435,5.17640271,144.43,144.4,25.57474075]
[1750879518750,26.0,144.44,144.4,25.57474075]
[1750879518941,5.17640154,144.43,144.4,25.57474075]
[1750879519138,26.0,144.44,144.4,25.57474075]
[1750879519352,5.1767258,144.43,144.4,25.57474075]
[1750879519642,26.0,144.44,144.4,32.20665182]
[1750879519851,5.17672463,144.43,144.4,25.57474075]
[1750879520034,26.0,144.44,144.4,25.57474075]
[1750879520237,5.17672489,144.43,144.4,25.57474075]
[1750879520425,5.17672489,144.42,144.4,25.57474075]
[1750879520744,26.0,144.44,144.4,25.57474075]
[1750879521046,5.17665902,144.43,144.4,25.57474075]
[1750879521232,26.0,144.44,144.4,25.57474075]
[1750879521433,5.17673708,144.43,144.4,25.57474075]
[1750879521649,26.0,144.44,144.4,25.57474075]
[1750879521861,5.17670669,144.43,144.4,32.20665182]
[1750879522030,4.15352545,144.46,144.4,32.20665182]
[1750879522231,5.17667422,144.45,144.4,32.20665182]
[1750879522441,5.17667422,144.44,144.4,32.20665182]
[1750879522643,5.17667422,144.43,144.4,32.20665182]
[1750879522847,4.15352545,144.46,144.4,32.20665182]
[1750879523151,5.176606,144.45,144.4,32.20665182]
[1750879523334,5.176606,144.44,144.4,32.20665182]
[1750879523537,5.176606,144.43,144.4,32.20665182]
[1750879523737,4.15370463,144.45,144.4,32.20665182]
[1750879524044,5.17638137,144.44,144.4,32.20665182]
[1750879524235,5.17638137,144.43,144.4,25.57474075]
[1750879524436,4.15339886,144.46,144.4,25.57474075]
[1750879524636,5.17614108,144.45,144.4,25.57474075]
[1750879524849,5.17614108,144.44,144.4,25.57474075]
[1750879525045,5.17614108,144.43,144.4,25.57474075]
[1750879525231,4.15339886,144.46,144.4,25.57474075]
[1750879525431,5.175844,144.45,144.4,25.57474075]
[1750879525626,35.32981796,144.44,144.4,25.57474075]
[1750879525852,5.175844,144.43,144.4,25.57474075]
[1750879526033,30.15397396,144.44,144.4,25.57474075]
[1750879526230,5.17570549,144.43,144.4,25.57474075]
[1750879526429,30.15397396,144.44,144.4,25.57474075]
[1750879526634,5.17564293,144.43,144.4,25.57474075]
[1750879526841,26.0,144.44,144.4,25.57474075]
[1750879527150,5.17565101,144.43,144.4,25.57474075]
[1750879527341,26.0,144.44,144.4,32.20665182]
[1750879527547,5.1754563,144.43,144.4,32.20665182]
[1750879527753,4.1535392,144.46,144.4,32.20665182]
[1750879527958,5.17537933,144.45,144.42,18.64964886]
[1750879528157,5.17537933,144.44,144.42,18.64964886]
[1750879528347,185.22449536,144.47,144.42,18.64964886]
[1750879528549,5.17502334,144.46,144.42,18.64964886]
[1750879528880,5.17502334,144.45,144.42,25.5737989]
[1750879529038,5.17502334,144.44,144.42,25.5737989]
[1750879529238,185.22449536,144.47,144.42,25.5737989]
[1750879529454,5.17506539,144.46,144.42,25.5737989]
[1750879529639,5.17506539,144.45,144.42,25.5737989]
[1750879529839,5.17506539,144.44,144.42,25.5737989]
[1750879530042,148.6,144.47,144.42,32.20570997]
[1750879530260,5.17447439,144.46,144.42,32.20570997]
[1750879530758,5.17447439,144.45,144.42,32.20570997]
[1750879531059,152.75313339,144.47,144.42,25.5737989]
[1750879531267,152.75313339,144.47,144.42,18.64964886]
[1750879531434,152.75313339,144.47,144.41,6.92460256]
[1750879533062,152.75313339,144.47,144.41,13.55651363]
[1750879533261,152.75313339,144.47,144.42,25.57372902]
[1750879535056,152.75313339,144.47,144.42,18.64964886]
[1750879536556,152.75313339,144.47,144.42,25.57377423]
[1750879539475,152.75313339,144.47,144.44,18.64964886]
[1750879539476,148.6,144.47,144.44,18.64964886]
[1750879542484,148.6,144.47,144.44,25.57255266]
[1750879551594,148.6,144.47,144.44,18.64964886]
[1750879553493,152.75315007,144.47,144.42,6.92411155]
[1750879554481,152.75315007,144.47,144.41,32.2060676]
[1750879556196,152.75315007,144.47,144.41,25.57415653]
[1750879556495,152.75315007,144.47,144.41,32.2060676]
[1750879556679,152.75315007,144.47,144.41,25.57415653]
[1750879556873,28.88,144.46,144.41,18.64964886]
[1750879557395,28.88,144.46,144.4,25.28155993]
[1750879558277,4.15368639,144.45,144.4,32.20663147]
[1750879558479,4.15368639,144.45,144.4,25.5747204]
[1750879558689,4.15368639,144.45,144.4,32.20663147]
[1750879559400,4.15368639,144.45,144.4,25.28155993]
[1750879559592,4.15368639,144.45,144.4,18.64964886]
[1750879559779,4.15368639,144.45,144.4,25.28155993]
[1750879560496,4.15368639,144.45,144.38,25.57564489]
[1750879560694,26.0,144.43,144.38,18.64964886]
[1750879560877,26.0,144.42,144.37,0.02]
[1750879561198,26.0,144.42,144.37,25.5962505]
[1750879561573,26.0,144.42,144.37,18.66964886]
[1750879562574,30.15477072,144.42,144.37,25.59614355]
[1750879562774,26.0,144.42,144.37,32.22805462]
[1750879563006,4.1540399,144.44,144.38,6.63191107]
[1750879564095,4.1540399,144.44,144.39,6.92568737]
[1750879565518,4.1540399,144.44,144.39,18.64964886]
[1750879565714,26.0,144.42,144.37,0.02]
[1750879565994,26.0,144.41,144.37,0.02]
[1750879566173,26.0,144.41,144.37,25.30155993]
[1750879566573,26.0,144.41,144.37,18.66964886]
[1750879566791,30.15487804,144.41,144.37,0.02]
[1750879567595,0.14216157,144.4,144.37,0.02]
[1750879568402,4.15541242,144.39,144.37,0.02]
[1750879570101,4.29735741,144.4,144.37,0.02]
[1750879570404,0.14216157,144.4,144.37,0.02]
[1750879570704,26.0,144.41,144.37,0.02]
[1750879572518,148.74216157,144.4,144.37,0.02]
[1750879572698,26.0,144.38,144.37,0.02]
[1750879573226,26.14216157,144.38,144.37,0.02]
[1750879574000,0.14216157,144.38,144.37,0.02]
[1750879574378,4.2978618,144.38,144.37,0.02]
[1750879574695,181.61552618,144.39,144.37,0.02]
[1750879574895,148.6,144.39,144.37,0.02]
[1750879575102,38.42285796,144.42,144.37,0.02]
[1750879575287,34.2683,144.42,144.37,0.02]
[1750879576504,34.2683,144.42,144.37,6.94664681]
[1750879576692,26.0,144.42,144.37,13.57855788]
[1750879577084,148.6,144.43,144.38,25.28155993]
[1750879578789,148.6,144.43,144.39,6.92568737]
[1750879583823,0.14216157,144.42,144.38,6.92599128]
[1750879584116,0.14216157,144.42,144.37,0.02]
[1750879584914,5.29317986,144.42,144.37,0.02]
[1750879585115,5.29317986,144.42,144.37,6.94647749]
[1750879586019,5.29306454,144.42,144.37,6.94647749]
[1750879586319,9.44769235,144.42,144.37,6.94647749]
[1750879589601,9.44769235,144.42,144.37,0.02]
[1750879593115,0.14216157,144.4,144.37,0.02]
[1750879594229,4.29733465,144.4,144.37,0.02]
[1750879594613,0.14216157,144.4,144.37,0.02]
[1750879595197,5.30103236,144.4,144.37,0.02]
[1750879597425,9.45616013,144.4,144.37,0.02]
[1750879598227,5.30103236,144.4,144.37,0.02]
[1750879599426,0.14216157,144.4,144.37,0.02]
[1750879600325,5.16771735,144.39,144.37,0.02]
[1750879601258,0.14216157,144.4,144.37,0.02]
[1750879601404,5.17016662,144.39,144.37,0.02]
[1750879601608,0.14216157,144.4,144.37,0.02]
[1750879601829,5.17035497,144.39,144.37,0.02]
[1750879602003,0.14216157,144.4,144.37,0.02]
[1750879602205,5.17035497,144.39,144.37,0.02]
[1750879602415,0.14216157,144.4,144.37,0.02]
[1750879602618,5.17185786,144.39,144.37,0.02]
[1750879602805,0.14216157,144.4,144.37,0.02]
[1750879603028,5.17185994,144.39,144.37,0.02]
[1750879603334,0.14216157,144.4,144.37,0.02]
[1750879603521,5.17313512,144.39,144.37,0.02]
[1750879603722,0.14216157,144.4,144.37,0.02]
[1750879603919,153.7733161,144.39,144.37,0.02]
[1750879604118,5.1733161,144.38,144.37,0.02]
[1750879606472,9.4711779,144.38,144.37,0.02]
[1750879607741,5.31547767,144.38,144.37,0.02]
[1750879608147,5.1733161,144.38,144.37,0.02]
[1750879608824,5.17370906,144.39,144.37,25.30155993]
[1750879609021,6.46906643,144.43,144.38,13.55807812]
[1750879609227,5.17336672,144.42,144.38,30.87349576]
[1750879609421,6.46906643,144.43,144.38,24.24158469]
[1750879609422,5.17336672,144.41,144.38,24.24158469]
[1750879609626,5.17336672,144.4,144.38,24.24158469]
[1750879609919,6.46906643,144.43,144.38,24.24158469]
[1750879610229,5.1738165,144.42,144.38,24.24158469]
[1750879610556,5.1738165,144.41,144.38,24.24158469]
[1750879610755,5.1738165,144.4,144.38,24.24158469]
[1750879610926,0.14216157,144.43,144.38,24.24158469]
[1750879611252,5.17424433,144.42,144.38,24.24158469]
[1750879611442,5.17424433,144.41,144.38,24.24158469]
[1750879611756,5.17424433,144.4,144.38,24.24158469]
[1750879611947,0.14216157,144.43,144.38,24.24158469]
[1750879612153,5.17415245,144.42,144.38,24.24158469]
[1750879612337,5.17415245,144.41,144.38,24.24158469]
[1750879612537,5.17415245,144.4,144.38,24.24158469]
[1750879612740,0.14216157,144.43,144.38,24.24158469]
[1750879612927,5.17405783,144.42,144.38,24.24158469]
[1750879613135,5.17405783,144.41,144.38,24.24158469]
[1750879613347,5.17405783,144.4,144.38,24.24158469]
[1750879613548,0.14216157,144.43,144.38,24.24158469]
[1750879613860,5.17398762,144.42,144.38,24.24158469]
[1750879614066,5.17398762,144.41,144.38,24.24158469]
[1750879614369,5.17398762,144.4,144.38,24.24158469]
[1750879614573,148.74216157,144.43,144.38,24.24158469]
[1750879614858,5.17409136,144.42,144.38,24.24158469]
[1750879615038,5.17409136,144.41,144.38,24.24158469]
[1750879615240,5.17409136,144.4,144.38,24.24158469]
[1750879615438,148.74216157,144.43,144.38,24.24158469]
[1750879615624,5.17426397,144.42,144.38,24.24158469]
[1750879615820,5.17426397,144.41,144.38,24.24158469]
[1750879616026,5.17426397,144.4,144.38,24.24158469]
[1750879616263,148.74216157,144.43,144.38,24.24158469]
[1750879616478,5.17426397,144.42,144.38,24.24158469]
[1750879616756,5.17426397,144.41,144.38,24.24158469]
[1750879617067,148.74216157,144.43,144.38,24.24158469]
[1750879617365,5.17411749,144.42,144.38,30.87349576]
[1750879617533,148.6,144.43,144.38,30.87349576]
[1750879617751,5.17369085,144.42,144.38,30.87349576]
[1750879617947,148.6,144.43,144.38,30.87349576]
[1750879618250,5.173715,144.42,144.39,6.63191107]
[1750879618552,148.6,144.43,144.4,6.92520775]
[1750879618738,5.1737665,144.42,144.4,6.92520775]
[1750879618942,148.6,144.43,144.4,6.92520775]
[1750879619150,5.17358345,144.42,144.4,6.92520775]
[1750879619339,148.6,144.43,144.4,6.92520775]
[1750879619541,5.17502055,144.42,144.4,6.92520775]
[1750879619740,148.6,144.43,144.4,6.92520775]
[1750879619940,5.17446597,144.42,144.4,6.92520775]
[1750879620142,148.6,144.43,144.4,6.92520775]
[1750879620341,5.17455634,144.42,144.4,6.92520775]
[1750879620557,148.6,144.43,144.4,6.92520775]
[1750879620855,5.17442318,144.42,144.4,6.92520775]
[1750879621046,148.6,144.43,144.4,6.92520775]
[1750879621259,5.17442318,144.42,144.4,6.92520775]
[1750879621550,148.6,144.43,144.4,6.92520775]
[1750879621756,5.17390205,144.42,144.4,6.92520775]
[1750879621944,148.6,144.43,144.4,6.92520775]
[1750879622458,5.17262382,144.42,144.38,30.87349576]
[1750879622763,148.6,144.43,144.38,30.87349576]
[1750879622956,5.17304064,144.42,144.38,30.87349576]
[1750879623160,148.6,144.43,144.38,30.87349576]
[1750879623334,5.17280567,144.42,144.38,30.87349576]
[1750879623534,148.6,144.43,144.38,24.24158469]
[1750879623744,5.17263813,144.42,144.38,30.87349576]
[1750879623940,148.6,144.43,144.38,24.24158469]
[1750879624152,5.17276526,144.42,144.38,30.87349576]
[1750879624349,148.6,144.43,144.38,30.87349576]
[1750879624557,5.17253108,144.42,144.38,30.87349576]
[1750879624755,148.6,144.43,144.38,30.87349576]
[1750879624959,5.17250096,144.42,144.38,30.87349576]
[1750879625237,148.6,144.43,144.38,30.87349576]
[1750879625452,5.17241194,144.42,144.38,6.92616705]
[1750879625763,5.17241194,144.41,144.38,6.92616705]
[1750879625935,148.6,144.43,144.38,6.92616705]
[1750879626135,5.17274185,144.42,144.38,6.92616705]
[1750879626338,5.17274185,144.41,144.38,6.92616705]
[1750879626553,152.75428439,144.43,144.38,6.92616705]
[1750879626740,181.57428439,144.43,144.38,6.92616705]
[1750879627854,5.17347754,144.42,144.38,6.92616705]
[1750879628057,5.17347754,144.41,144.38,6.92616705]
[1750879628252,5.17347754,144.4,144.38,6.92616705]
[1750879628567,181.57428439,144.43,144.38,6.92616705]
[1750879628568,0.14216157,144.42,144.38,6.92616705]
[1750879628741,5.17351521,144.41,144.38,6.92616705]
[1750879628943,5.17351521,144.4,144.38,6.92616705]
[1750879629163,0.14216157,144.42,144.38,6.92616705]
[1750879629389,5.17354533,144.41,144.38,6.92616705]
[1750879629581,5.17354533,144.4,144.37,6.94664681]
[1750879629772,4.29676516,144.42,144.37,13.57855788]
[1750879629967,5.17350411,144.41,144.37,0.02]
[1750879630174,26.0,144.38,144.37,0.02]
[1750879630465,31.31663249,144.38,144.37,0.02]
[1750879631665,35.47233272,144.38,144.37,0.02]
[1750879631995,31.31663249,144.38,144.37,0.02]
[1750879632161,5.17447092,144.38,144.37,0.02]
[1750879632364,148.6,144.39,144.37,6.65191107]
[1750879633786,148.74216157,144.42,144.38,6.92616705]
[1750879633996,5.17296909,144.41,144.38,30.87349576]
[1750879634172,5.17296909,144.4,144.39,6.63191107]
[1750879634490,5.17245861,144.41,144.39,6.63191107]
[1750879634686,148.6,144.42,144.39,6.63191107]
[1750879634868,5.17217441,144.41,144.39,6.63191107]
[1750879635064,148.6,144.42,144.39,6.63191107]
[1750879635483,148.6,144.42,144.4,6.92520775]
[1750879640510,6.38,144.44,144.4,6.92520775]
[1750879640691,6.38,144.44,144.41,6.63191107]
[1750879641100,174.6,144.45,144.42,6.92424871]
[1750879641298,5.16915261,144.44,144.42,6.92424871]
[1750879641516,174.6,144.45,144.42,6.92424871]
[1750879641709,5.16827244,144.44,144.42,6.92424871]
[1750879642012,174.6,144.45,144.42,6.92424871]
[1750879642212,5.16823338,144.44,144.42,6.92424871]
[1750879643114,174.6,144.45,144.42,6.92424871]
[1750879643416,5.16741857,144.44,144.42,6.92424871]
[1750879643911,5.16741857,144.44,144.38,24.24158469]
[1750879644117,174.6,144.45,144.4,6.63191107]
[1750879644413,5.16677718,144.44,144.4,6.63191107]
[1750879644607,174.6,144.45,144.4,6.63191107]
[1750879644991,174.6,144.45,144.41,6.63191107]
[1750879645914,174.6,144.45,144.42,6.92424871]
[1750879647820,5.16481362,144.44,144.42,6.92424871]
[1750879648017,5.16481362,144.44,144.41,6.9247282]
[1750879648234,5.16481362,144.44,144.39,6.92568737]
[1750879648530,5.16536636,144.43,144.39,6.92568737]
[1750879648726,5.16536636,144.44,144.39,6.92568737]
[1750879648926,5.16551672,144.43,144.39,6.92568737]
[1750879649102,203.38,144.45,144.39,6.92568737]
[1750879649423,5.16551555,144.44,144.39,6.92568737]
[1750879649625,5.16551555,144.43,144.39,6.92568737]
[1750879649824,207.53393565,144.45,144.39,13.55759844]
[1750879650028,5.16605884,144.44,144.39,13.55759844]
[1750879650205,5.16605884,144.43,144.39,13.55759844]
[1750879650410,178.75393565,144.45,144.4,6.63191107]
[1750879650607,5.16670931,144.44,144.4,6.63191107]
[1750879650832,5.16670931,144.43,144.4,6.63191107]
[1750879651024,178.75393565,144.45,144.4,6.63191107]
[1750879651232,5.16670931,144.44,144.4,13.55706476]
[1750879651410,178.75393565,144.45,144.4,13.55706476]
[1750879651609,5.16815501,144.44,144.4,13.55706476]
[1750879651818,5.16815501,144.43,144.4,13.55706476]
[1750879652137,174.6,144.45,144.4,13.55706476]
[1750879652425,155.10684693,144.48,144.43,6.63191107]
[1750879652732,5.1697505,144.47,144.43,6.63191107]
[1750879652906,5.1697505,144.46,144.43,13.55549369]
[1750879653106,5.1697505,144.45,144.43,13.55549369]
[1750879653306,178.79300346,144.48,144.43,13.55549369]
[1750879653517,5.16918419,144.47,144.43,13.55549369]
[1750879653721,5.16918419,144.46,144.43,13.55549369]
[1750879653912,5.16918419,144.45,144.43,13.55549369]
[1750879654114,178.79300346,144.48,144.43,6.92358262]
[1750879654330,5.17021467,144.47,144.43,6.92358262]
[1750879654515,5.17021467,144.46,144.43,6.92358262]
[1750879654831,178.79300346,144.48,144.43,6.92358262]
[1750879655031,5.16929549,144.47,144.45,6.63191107]
[1750879655231,148.64,144.48,144.45,6.63191107]
[1750879656127,148.64,144.48,144.46,6.63191107]
[1750879656308,0.04,144.48,144.46,6.63191107]
[1750879656615,0.04,144.48,144.46,18.64964886]
[1750879657019,0.04,144.48,144.46,25.57161515]
[1750879657438,0.04,144.48,144.46,32.20352622]
[1750879657642,0.04,144.48,144.45,18.64964886]
[1750879658354,0.04,144.48,144.44,6.92328994]
[1750879658643,0.04,144.48,144.44,25.28155993]
[1750879658816,0.04,144.48,144.45,20.17234886]
[1750879659011,0.04,144.48,144.47,32.20341221]
[1750879659208,0.04,144.48,144.47,6.92185228]
[1750879659525,0.04,144.48,144.47,25.57150114]
[1750879659726,0.04,144.48,144.47,32.20341221]
[1750879660708,0.04,144.48,144.47,25.57150114]
[1750879660908,0.04,144.48,144.47,32.20341221]
[1750879665937,0.04,144.48,144.45,13.55451007]
[1750879666120,0.04,144.48,144.44,25.57277307]
[1750879666459,0.04,144.48,144.44,32.20468414]
[1750879666616,0.04,144.48,144.45,6.63191107]
[1750879666935,0.04,144.48,144.46,6.63191107]
[1750879667518,0.04,144.48,144.47,13.55376335]
[1750879669161,0.04,144.48,144.47,32.20341221]
[1750879672846,0.04,144.48,144.47,25.57150114]
[1750879673043,0.04,144.48,144.47,32.20341221]
[1750879678338,0.04,144.48,144.47,25.57150114]
[1750879678526,0.04,144.48,144.47,32.20341221]
[1750879678722,0.04,144.48,144.47,25.28155993]
[1750879678941,0.04,144.48,144.47,18.64964886]
[1750879680060,0.04,144.48,144.47,32.20341221]
[1750879680429,0.04,144.48,144.47,25.57150114]
[1750879680646,0.04,144.48,144.47,18.64964886]
[1750879683058,0.04,144.48,144.47,25.57150114]
[1750879683346,0.04,144.48,144.47,32.20341221]
[1750879684353,0.04,144.48,144.47,18.64964886]
[1750879684650,0.04,144.48,144.47,25.28155993]
[1750879685958,0.04,144.48,144.46,13.55411397]
[1750879686653,0.04,144.48,144.44,6.63191107]
[1750879687356,0.04,144.48,144.43,25.28155993]
[1750879687573,0.04,144.48,144.42,6.63191107]
[1750879687745,26.0,144.46,144.41,18.64964886]
[1750879687957,0.04,144.48,144.4,6.63191107]
[1750879687958,26.0,144.45,144.4,6.63191107]
[1750879688457,26.0,144.45,144.4,18.64964886]
[1750879688658,26.0,144.45,144.4,25.28155993]
[1750879689544,30.15382939,144.45,144.4,32.20667775]
[1750879690862,30.15382939,144.45,144.4,32.20673295]
[1750879692036,30.15382939,144.45,144.4,25.57482188]
[1750879692371,30.15382939,144.45,144.37,0.02]
[1750879692372,26.0,144.44,144.39,18.64964886]
[1750879692679,6.2652,144.43,144.38,13.55786093]
[1750879692838,6.2652,144.43,144.38,6.63191107]
[1750879693040,6.2652,144.43,144.37,18.66964886]
[1750879693262,11.41796247,144.43,144.37,25.59612599]
[1750879693654,11.41796247,144.43,144.37,18.66964886]
[1750879693857,11.41796247,144.43,144.37,25.59623826]
[1750879694074,6.2652,144.43,144.4,6.63191107]
[1750879694371,6.2652,144.43,144.4,13.55707675]
[1750879694668,6.2652,144.43,144.4,6.92516568]
[1750879695855,6.2652,144.43,144.39,13.55738451]
[1750879697164,10.41949448,144.43,144.39,6.92547344]
[1750879697465,10.41949448,144.43,144.39,32.20703337]
[1750879697972,10.41949448,144.43,144.39,25.5751223]
[1750879698468,10.41949448,144.43,144.39,18.64964886]
[1750879698671,10.41949448,144.43,144.37,13.57838591]
[1750879700882,10.41949448,144.43,144.37,0.02]
[1750879701063,10.41949448,144.43,144.37,6.65191107]
[1750879701371,10.41949448,144.43,144.37,0.02]
[1750879701752,0.14216157,144.42,144.37,0.02]
[1750879702267,1.6174,144.39,144.37,0.02]
[1750879709854,5.77282625,144.39,144.37,0.02]
[1750879710057,1.6174,144.39,144.37,0.02]
[1750879711877,1.6174,144.39,144.37,6.94664681]
[1750879713054,1.6174,144.39,144.37,0.02]
[1750879714262,5.77283475,144.39,144.37,0.02]
[1750879716077,27.6174,144.39,144.37,0.02]
[1750879720881,148.6,144.4,144.37,6.65191107]
[1750879722159,148.6,144.4,144.38,6.63191107]
[1750879723122,148.6,144.4,144.39,6.92568737]
[1750879725217,148.6,144.4,144.37,0.02]
[1750879726517,148.6,144.4,144.37,6.94664681]
[1750879727199,148.6,144.4,144.37,13.57855788]
[1750879728519,148.6,144.4,144.37,30.8951749]
[1750879729235,148.6,144.4,144.38,6.63191107]
[1750879729432,7.9168,144.43,144.39,6.63191107]
[1750879729720,13.07382179,144.43,144.39,6.63191107]
[1750879729895,13.07382179,144.43,144.4,6.63191107]
[1750879729896,7.9168,144.43,144.4,6.63191107]
[1750879730504,13.0806845,144.43,144.41,6.9247282]
[1750879731602,7.9168,144.43,144.41,6.9247282]
[1750879731935,154.96,144.44,144.41,6.9247282]
[1750879732122,5.16729124,144.43,144.41,6.9247282]
[1750879732305,5.1673225,144.43,144.41,6.9247282]
[1750879732505,154.96,144.44,144.41,6.9247282]
[1750879732710,5.16941826,144.43,144.41,6.9247282]
[1750879733011,154.96,144.44,144.41,6.9247282]
[1750879733220,5.16941047,144.43,144.41,6.9247282]
[1750879733428,154.96,144.44,144.41,6.9247282]
[1750879733606,5.16938036,144.43,144.41,6.9247282]
[1750879733805,154.96,144.44,144.41,6.9247282]
[1750879734031,5.17013073,144.43,144.41,6.9247282]
[1750879734327,154.96,144.44,144.41,6.9247282]
[1750879734505,5.17013073,144.43,144.41,6.9247282]
[1750879734707,154.96,144.44,144.41,6.9247282]
[1750879734922,5.17075112,144.43,144.41,6.9247282]
[1750879735234,154.96,144.44,144.41,6.9247282]
[1750879735401,5.17075892,144.43,144.41,6.9247282]
[1750879735602,154.96,144.44,144.41,6.9247282]
[1750879735810,5.17128276,144.43,144.41,6.9247282]
[1750879736010,154.96,144.44,144.41,6.9247282]
[1750879736211,5.17134552,144.43,144.41,6.9247282]
[1750879736412,154.96,144.44,144.41,6.9247282]
[1750879736413,148.6,144.44,144.41,6.9247282]
[1750879736711,5.17205657,144.43,144.41,6.9247282]
[1750879736911,148.6,144.44,144.4,6.92520775]
[1750879737132,5.17206671,144.43,144.4,6.92520775]
[1750879737329,148.6,144.44,144.4,6.92520775]
[1750879737517,5.17206671,144.43,144.4,6.92520775]
[1750879737717,148.6,144.44,144.4,6.92520775]
[1750879737917,5.17210363,144.43,144.4,6.92520775]
[1750879738129,148.6,144.44,144.4,6.92520775]
[1750879738327,5.1721049,144.43,144.4,6.92520775]
[1750879738632,148.6,144.44,144.4,6.92520775]
[1750879738831,5.17179213,144.43,144.4,6.92520775]
[1750879739141,148.6,144.44,144.4,6.92520775]
[1750879739319,5.171762,144.43,144.4,6.92520775]
[1750879739639,148.6,144.44,144.4,13.55711882]
[1750879739937,5.17165647,144.43,144.4,13.55711882]
[1750879740137,148.6,144.44,144.4,13.55711882]
[1750879740333,5.17168548,144.43,144.4,13.55711882]
[1750879740532,148.6,144.44,144.4,13.55711882]
[1750879740743,148.6,144.44,144.41,6.63191107]
[1750879743230,148.6,144.44,144.42,6.92424871]
[1750879744142,148.6,144.44,144.4,6.63191107]
[1750879746236,148.6,144.44,144.41,13.55663927]
[1750879747235,148.6,144.44,144.4,6.92520775]
[1750879747426,148.6,144.44,144.4,13.55711882]
[1750879749543,148.6,144.44,144.41,6.63191107]
[1750879751041,148.6,144.44,144.43,6.63191107]
[1750879751211,0.04,144.46,144.43,6.63191107]
[1750879751411,5.20578095,144.46,144.43,6.63191107]
[1750879751827,0.04,144.46,144.43,6.63191107]
[1750879752512,0.04,144.46,144.41,18.64964886]
[1750879752732,0.04,144.46,144.43,6.63191107]
[1750879753134,0.04,144.46,144.44,6.92328994]
[1750879754847,0.04,144.46,144.43,18.64964886]
[1750879755028,0.04,144.46,144.43,25.28155993]
[1750879755852,0.04,144.46,144.42,6.92424871]
[1750879756346,5.201522,144.46,144.41,6.92451026]
[1750879756531,5.201522,144.46,144.41,13.55642133]
[1750879756850,0.04,144.46,144.43,13.55539585]
[1750879758846,0.04,144.46,144.43,6.92348478]
[1750879759324,5.20108173,144.46,144.43,6.92348478]
[1750879759527,0.04,144.46,144.43,6.92348478]
[1750879759846,5.20108173,144.46,144.43,6.92348478]
[1750879761137,0.04,144.46,144.43,6.92348478]
[1750879761343,5.20108173,144.46,144.43,6.92348478]
[1750879761535,0.04,144.46,144.43,6.92348478]
[1750879763156,5.20365807,144.46,144.43,6.92348478]
[1750879763358,0.04,144.46,144.43,6.92348478]
[1750879763549,5.20365807,144.46,144.43,13.55539585]
[1750879763746,5.20365807,144.46,144.44,6.63191107]
[1750879763747,0.04,144.46,144.44,6.63191107]
[1750879763949,0.04,144.46,144.45,6.63191107]
[1750879764255,0.04,144.46,144.4,6.92520775]
[1750879764430,0.18216157,144.46,144.41,6.63191107]
[1750879764635,0.18216157,144.46,144.4,13.55711882]
[1750879765060,0.18216157,144.46,144.38,43.31521897]
[1750879765061,0.04,144.46,144.42,6.92424871]
[1750879766148,0.04,144.46,144.41,25.57418833]
[1750879766538,0.04,144.46,144.41,32.2060994]
[1750879766932,0.04,144.46,144.41,25.57418833]
[1750879767757,5.16904289,144.45,144.41,32.2060994]
[1750879767930,0.04,144.46,144.41,32.2060994]
[1750879768131,5.16905186,144.45,144.41,32.2060994]
[1750879768331,0.04,144.46,144.41,32.2060994]
[1750879768555,5.16911266,144.45,144.41,6.92453947]
[1750879768737,9.32308662,144.44,144.37,6.65191107]
[1750879768932,5.16911266,144.43,144.38,18.64964886]
[1750879769127,4.15397396,144.44,144.37,0.02]
[1750879769361,5.1709175,144.43,144.38,6.63191107]
[1750879769566,4.15397396,144.44,144.38,18.64964886]
[1750879769567,5.17106256,144.42,144.38,18.64964886]
[1750879769755,4.1544232,144.43,144.38,18.64964886]
[1750879769938,5.17201447,144.42,144.38,18.64964886]
[1750879770139,4.1544232,144.43,144.38,18.64964886]
[1750879770441,5.17203585,144.42,144.38,18.64964886]